[Event "NJSK 2023 Meisjes C"]
[Site "Almelo, Netherlands"]
[Date "2023.05.02"]
[Round "3.6"]
[White "Koorevaar, Sarah-Joy"]
[Black "Hardeman, Imara"]
[Result "1-0"]
[TimeControl "90min/40moves + 30min + 30sec/move"]
[WhiteElo "1067"]
[BlackElo "920"]

1. d4 {[%clk 01:30:59]} d6 {[%clk 01:30:57]} {[%emt 00:00:04]} 2. c4 {[%clk
01:31:20]} {[%emt 00:00:09]} c6 {[%clk 01:31:25]} {[%emt 00:00:02]} 3. g3
{[%clk 01:31:42]} {[%emt 00:00:08]} Qc7 {[%clk 01:31:40]} {[%emt 00:00:15]} 4.
Bg2 {[%clk 01:31:59]} {[%emt 00:00:13]} Nf6 {[%clk 01:31:52]} {[%emt 00:00:18]}
5. Nf3 {[%clk 01:32:20]} {[%emt 00:00:08]} Bg4 {[%clk 01:32:15]} {[%emt
00:00:08]} 6. O-O {[%clk 01:32:34]} {[%emt 00:00:15]} e5 {[%clk 01:31:20]}
{[%emt 00:01:25]} 7. Bg5 {[%clk 01:31:08]} {[%emt 00:01:57]} Be7 {[%clk
01:31:11]} {[%emt 00:00:39]} 8. d5 {[%clk 01:25:21]} {[%emt 00:06:16]} h6
{[%clk 01:28:21]} {[%emt 00:03:20]} 9. Bxf6 {[%clk 01:23:15]} {[%emt 00:02:36]}
Bxf6 {[%clk 01:28:43]} {[%emt 00:00:08]} 10. Nbd2 {[%clk 01:23:05]} {[%emt
00:00:41]} Nd7 {[%clk 01:26:44]} {[%emt 00:02:28]} 11. Ne4 {[%clk 01:23:07]}
{[%emt 00:00:28]} Be7 {[%clk 01:25:31]} {[%emt 00:01:43]} 12. Rc1 {[%clk
01:22:42]} {[%emt 00:00:55]} O-O {[%clk 01:22:38]} {[%emt 00:03:24]} 13. c5
{[%clk 01:20:48]} {[%emt 00:02:24]} Nxc5 {[%clk 01:18:30]} {[%emt 00:04:38]} 14.
Nxe5 {[%clk 01:14:15]} {[%emt 00:07:03]} Bf5 {[%clk 01:11:28]} {[%emt
00:07:32]} 15. Nxc5 {[%clk 01:12:59]} {[%emt 00:01:45]} dxc5 {[%clk 01:11:14]}
{[%emt 00:00:45]} 16. Nc4 {[%clk 01:11:43]} {[%emt 00:01:46]} Rad8 {[%clk
01:09:13]} {[%emt 00:02:31]} 17. e4 {[%clk 01:10:34]} {[%emt 00:01:39]} Be6
{[%clk 01:07:46]} {[%emt 00:01:56]} 18. Rc2 {[%clk 01:06:31]} {[%emt 00:04:33]}
cxd5 {[%clk 01:05:56]} {[%emt 00:02:21]} 19. exd5 {[%clk 01:06:50]} {[%emt
00:00:10]} b5 {[%clk 00:59:27]} {[%emt 00:07:00]} 20. Ne3 {[%clk 01:04:00]}
{[%emt 00:03:19]} Rd6 {[%clk 00:57:48]} {[%emt 00:02:10]} 21. Qc1 {[%clk
01:01:00]} {[%emt 00:03:31]} Bd7 {[%clk 00:52:08]} {[%emt 00:06:09]} 22. Rxc5
{[%clk 00:57:28]} {[%emt 00:04:02]} Qb7 {[%clk 00:51:08]} {[%emt 00:01:30]} 23.
Qc2 {[%clk 00:50:54]} {[%emt 00:07:05]} Qb8 {[%clk 00:48:40]} {[%emt 00:02:58]}
24. Re1 {[%clk 00:46:47]} {[%emt 00:04:36]} Ra6 {[%clk 00:48:04]} {[%emt
00:01:06]} 25. Rc7 {[%clk 00:42:56]} {[%emt 00:04:21]} Rc8 {[%clk 00:44:23]}
{[%emt 00:04:11]} 26. Rxc8+ {[%clk 00:38:05]} {[%emt 00:05:21]} Bxc8 {[%clk
00:44:36]} {[%emt 00:00:17]} 27. Nf1 {[%clk 00:36:58]} {[%emt 00:01:36]} Bf8
{[%clk 00:38:08]} {[%emt 00:06:59]} 28. Re8 {[%clk 00:36:18]} {[%emt 00:01:10]}
Bf5 {[%clk 00:37:47]} {[%emt 00:00:50]} 29. Rxf8+ {[%clk 00:32:44]} {[%emt
00:04:04]} Kxf8 {[%clk 00:37:31]} {[%emt 00:00:46]} 30. Qxf5 {[%clk 00:33:05]}
{[%emt 00:00:09]} Rxa2 {[%clk 00:37:45]} {[%emt 00:00:17]} 31. Qd7 {[%clk
00:28:16]} {[%emt 00:05:18]} Qe8 {[%clk 00:35:45]} {[%emt 00:02:31]} 32. Qd6+
{[%clk 00:22:35]} {[%emt 00:06:11]} Qe7 {[%clk 00:35:01]} {[%emt 00:01:14]} 33.
Qf4 {[%emt 00:03:56]} Qe1 {[%clk 00:32:27]} 34. Qc7 {[%clk 00:17:59]} {[%emt
00:04:43]} Qe7 {[%clk 00:29:32]} {[%emt 00:03:26]} 35. d6 {[%clk 00:17:33]}
{[%emt 00:00:56]} Qe5 {[%clk 00:25:23]} {[%emt 00:04:38]} 36. Qc8+ {[%clk
00:17:48]} {[%emt 00:00:15]} Qe8 {[%clk 00:25:15]} {[%emt 00:00:38]} 37. d7
{[%clk 00:18:14]} {[%emt 00:00:05]} Qxc8 {[%clk 00:25:23]} {[%emt 00:00:22]} 38.
dxc8=Q+ {[%clk 00:19:08]} {[%emt 00:00:11]} 1-0

[Event "NJSK 2023 Meisjes C"]
[Site "Almelo, Netherlands"]
[Date "2023.05.03"]
[Round "4.1"]
[White "Fu, Janice"]
[Black "Jorritsma, Eli Alia"]
[Result "1/2-1/2"]
[TimeControl "90min/40moves + 30min + 30sec/move"]
[WhiteElo "1408"]
[BlackElo "1330"]

1. e4 {[%clk 01:30:59]} {[%emt 00:00:01]} g6 {[%clk 01:30:52]} {[%emt
00:00:08]} 2. d4 {[%clk 01:31:22]} {[%emt 00:00:07]} Bg7 {[%clk 01:31:13]}
{[%emt 00:00:09]} 3. Nf3 {[%clk 01:31:35]} {[%emt 00:00:18]} d6 {[%clk
01:31:31]} {[%emt 00:00:11]} 4. Be3 {[%clk 01:27:19]} {[%emt 00:04:47]} Nd7
{[%clk 01:30:20]} {[%emt 00:01:40]} 5. Bc4 {[%clk 01:24:31]} {[%emt 00:03:18]}
h6 {[%clk 01:23:25]} {[%emt 00:07:25]} 6. Bd3 {[%clk 01:18:50]} {[%emt
00:06:10]} a6 {[%clk 01:18:18]} {[%emt 00:05:37]} 7. c4 {[%clk 01:16:13]}
{[%emt 00:03:06]} Ngf6 {[%clk 01:16:50]} {[%emt 00:01:59]} 8. h3 {[%clk
01:14:20]} {[%emt 00:02:23]} c5 {[%clk 01:05:20]} {[%emt 00:11:59]} 9. Nc3
{[%clk 01:04:53]} {[%emt 00:09:57]} b6 {[%clk 01:02:00]} {[%emt 00:03:51]} 10.
e5 {[%clk 00:57:26]} {[%emt 00:07:58]} Nh7 {[%clk 00:49:33]} {[%emt 00:12:57]}
11. e6 {[%clk 00:48:34]} {[%emt 00:09:21]} Ndf6 {[%clk 00:43:11]} {[%emt
00:06:52]} 12. exf7+ {[%clk 00:45:53]} {[%emt 00:03:12]} Kxf7 {[%clk 00:43:26]}
{[%emt 00:00:15]} 13. Nh4 {[%clk 00:42:23]} {[%emt 00:03:59]} Nf8 {[%clk
00:37:58]} {[%emt 00:05:58]} 14. Qc2 {[%clk 00:40:17]} {[%emt 00:02:37]} g5
{[%clk 00:34:33]} {[%emt 00:03:54]} 15. Ng6 {[%clk 00:35:21]} {[%emt 00:05:25]}
Nxg6 {[%clk 00:32:19]} {[%emt 00:02:44]} 16. Bxg6+ {[%clk 00:35:42]} {[%emt
00:00:09]} Kg8 {[%clk 00:32:22]} {[%emt 00:00:26]} 17. d5 {[%clk 00:30:34]}
{[%emt 00:05:40]} Bd7 {[%clk 00:28:35]} {[%emt 00:04:17]} 18. f4 {[%clk
00:25:58]} {[%emt 00:05:06]} gxf4 {[%clk 00:25:21]} {[%emt 00:03:43]} 19. Bxf4
{[%clk 00:26:02]} {[%emt 00:00:26]} Be8 {[%clk 00:23:07]} {[%emt 00:02:44]} 20.
Ne4 {[%clk 00:22:04]} {[%emt 00:04:28]} Bxg6 {[%clk 00:18:46]} {[%emt
00:04:51]} 21. Nxf6+ {[%clk 00:22:01]} {[%emt 00:00:33]} Kf7 {[%clk 00:18:56]}
{[%emt 00:00:20]} 22. Ne4 {[%clk 00:21:10]} {[%emt 00:01:21]} Bxe4 {[%clk
00:17:22]} {[%emt 00:02:05]} 23. Qxe4 {[%clk 00:21:32]} {[%emt 00:00:07]} Bxb2
{[%clk 00:16:35]} {[%emt 00:01:17]} 24. Rb1 {[%clk 00:17:38]} {[%emt 00:04:25]}
Bf6 {[%clk 00:14:40]} {[%emt 00:02:24]} 25. Qe6+ {[%clk 00:17:26]} {[%emt
00:00:43]} Kg6 {[%clk 00:13:26]} {[%emt 00:01:43]} 26. Rb3 {[%clk 00:16:49]}
{[%emt 00:01:07]} Rg8 {[%clk 00:09:25]} {[%emt 00:04:32]} 27. Rg3+ {[%clk
00:12:45]} {[%emt 00:04:33]} Kh7 {[%clk 00:09:44]} {[%emt 00:00:11]} 28. Qe4+
{[%clk 00:12:04]} {[%emt 00:01:12]} Kh8 {[%clk 00:09:57]} {[%emt 00:00:15]} 29.
Rxg8+ {[%clk 00:11:58]} {[%emt 00:00:36]} Qxg8 {[%clk 00:10:20]} {[%emt
00:00:08]} 30. Bxh6 {[%clk 00:11:59]} {[%emt 00:00:30]} Qh7 {[%clk 00:07:34]}
{[%emt 00:03:15]} 31. Qxh7+ {[%clk 00:09:15]} {[%emt 00:03:15]} Kxh7 {[%clk
00:08:00]} {[%emt 00:00:04]} 32. Bd2 {[%clk 00:08:19]} {[%emt 00:01:25]} b5
{[%clk 00:07:01]} {[%emt 00:01:29]} 33. O-O {[%clk 00:07:43]} {[%emt 00:01:06]}
b4 {[%clk 00:06:27]} {[%emt 00:01:04]} 34. g4 {[%clk 00:05:50]} {[%emt
00:02:23]} Kg6 {[%clk 00:06:17]} {[%emt 00:00:39]} 35. Rf3 {[%clk 00:03:46]}
{[%emt 00:02:34]} Rb8 {[%clk 00:05:13]} {[%emt 00:01:34]} 36. Bc1 {[%clk
00:01:56]} {[%emt 00:02:20]} a5 {[%clk 00:05:07]} {[%emt 00:00:36]} 37. Rb3
{[%clk 00:02:21]} {[%emt 00:00:06]} a4 {[%clk 00:05:00]} {[%emt 00:00:37]} 38.
Rb1 {[%clk 00:02:44]} {[%emt 00:00:06]} Kf7 {[%clk 00:03:03]} {[%emt 00:02:28]}
39. Bb2 {[%clk 00:02:27]} {[%emt 00:00:46]} Bxb2 {[%clk 00:02:50]} {[%emt
00:00:43]} 40. Rxb2 {[%clk 00:02:54]} {[%emt 00:00:03]} 1/2-1/2

[Event "NJSK 2023 Meisjes C"]
[Site "Almelo, Netherlands"]
[Date "2023.05.03"]
[Round "4.2"]
[White "Regterschot, Frederieke"]
[Black "Hagen, Carlijn"]
[Result "0-1"]
[TimeControl "90min/40moves + 30min + 30sec/move"]
[WhiteElo "966"]
[BlackElo "1132"]

1. e4 {[%clk 01:30:58]} {[%emt 00:00:02]} e5 {[%clk 01:30:55]} {[%emt
00:00:05]} 2. Nf3 {[%clk 01:31:20]} {[%emt 00:00:08]} Nc6 {[%clk 01:31:13]}
{[%emt 00:00:12]} 3. Bc4 {[%clk 01:31:36]} {[%emt 00:00:15]} f5 {[%clk
01:30:53]} {[%emt 00:00:49]} 4. d3 {[%clk 01:30:44]} {[%emt 00:01:23]} Bc5
{[%clk 01:23:59]} {[%emt 00:07:24]} 5. Bxg8 {[%clk 01:30:01]} {[%emt 00:01:12]}
Rxg8 {[%clk 01:23:54]} {[%emt 00:00:36]} 6. exf5 {[%clk 01:29:31]} {[%emt
00:01:00]} d5 {[%clk 01:23:26]} {[%emt 00:00:57]} 7. Nxe5 {[%clk 01:29:03]}
{[%emt 00:00:59]} Qe7 {[%clk 01:23:20]} {[%emt 00:00:36]} 8. Qh5+ {[%clk
01:26:20]} {[%emt 00:03:12]} Kf8 {[%clk 01:19:01]} {[%emt 00:04:50]} 9. Qxh7
{[%clk 01:24:06]} {[%emt 00:02:44]} Qxe5+ {[%clk 01:18:57]} {[%emt 00:00:35]}
10. Kf1 {[%clk 01:21:37]} {[%emt 00:03:00]} Bxf5 {[%clk 01:18:31]} {[%emt
00:00:56]} 11. Qh5 {[%clk 01:19:05]} {[%emt 00:03:02]} Bxd3+ {[%clk 01:18:25]}
{[%emt 00:00:36]} 12. cxd3 {[%clk 01:18:58]} {[%emt 00:00:37]} Qxh5 {[%clk
01:18:43]} {[%emt 00:00:11]} 13. Bf4 {[%clk 01:18:42]} {[%emt 00:00:46]} Qd1#
{[%clk 01:19:04]} {[%emt 00:00:09]} 0-1

[Event "NJSK 2023 Meisjes C"]
[Site "Almelo, Netherlands"]
[Date "2023.05.03"]
[Round "4.3"]
[White "Grigoriu, Eva"]
[Black "Westerhof, Fleur"]
[Result "0-1"]
[TimeControl "90min/40moves + 30min + 30sec/move"]
[WhiteElo "1045"]
[BlackElo "1743"]

1. e3 {[%clk 01:30:59]} Nf6 {[%clk 01:27:31]} {[%emt 00:03:29]} 2. c4 {[%clk
01:31:19]} {[%emt 00:00:10]} e6 {[%clk 01:27:36]} {[%emt 00:00:24]} 3. Nc3
{[%clk 01:31:27]} {[%emt 00:00:22]} d5 {[%clk 01:27:21]} {[%emt 00:00:45]} 4.
b3 {[%clk 01:31:12]} {[%emt 00:00:46]} Be7 {[%clk 01:25:42]} {[%emt 00:02:08]}
5. Bb2 {[%clk 01:31:15]} {[%emt 00:00:27]} O-O {[%clk 01:24:00]} {[%emt
00:02:12]} 6. d4 {[%clk 01:29:37]} {[%emt 00:02:08]} c5 {[%clk 01:19:36]}
{[%emt 00:04:55]} 7. Nf3 {[%clk 01:28:21]} {[%emt 00:01:46]} b6 {[%clk
01:18:05]} {[%emt 00:02:01]} 8. Bd3 {[%clk 01:26:57]} {[%emt 00:01:54]} Nc6
{[%clk 01:16:36]} {[%emt 00:01:59]} 9. Ba3 {[%clk 01:23:39]} {[%emt 00:03:48]}
Nb4 {[%clk 01:07:41]} {[%emt 00:09:25]} 10. h3 {[%clk 01:21:35]} {[%emt
00:02:34]} cxd4 {[%clk 01:05:54]} {[%emt 00:02:18]} 11. exd4 {[%clk 01:21:44]}
{[%emt 00:00:20]} Nxd3+ {[%clk 01:06:10]} {[%emt 00:00:15]} 12. Qxd3 {[%clk
01:22:04]} {[%emt 00:00:09]} Bxa3 {[%clk 01:06:23]} {[%emt 00:00:17]} 13. O-O
{[%clk 01:19:40]} {[%emt 00:02:53]} Bb7 {[%clk 01:01:11]} {[%emt 00:05:42]} 14.
Ne5 {[%clk 01:15:25]} {[%emt 00:04:46]} Nd7 {[%clk 00:58:19]} {[%emt 00:03:21]}
15. Rfe1 {[%clk 01:11:31]} {[%emt 00:04:24]} Nxe5 {[%clk 00:53:39]} {[%emt
00:05:09]} 16. Rxe5 {[%clk 01:09:09]} {[%emt 00:02:53]} dxc4 {[%clk 00:52:20]}
{[%emt 00:01:48]} 17. bxc4 {[%clk 01:08:20]} {[%emt 00:01:19]} Bd6 {[%clk
00:51:32]} {[%emt 00:01:17]} 18. Ree1 {[%clk 01:06:39]} {[%emt 00:02:11]} Qg5
{[%clk 00:47:21]} {[%emt 00:04:42]} 19. Ne4 {[%clk 01:04:27]} {[%emt 00:02:42]}
Qg6 {[%clk 00:46:11]} {[%emt 00:01:39]} 20. Re3 {[%clk 01:02:17]} {[%emt
00:02:41]} Bf4 {[%clk 00:41:16]} {[%emt 00:05:15]} 21. Ree1 {[%clk 00:57:59]}
{[%emt 00:04:57]} Rfd8 {[%clk 00:38:59]} {[%emt 00:02:47]} 22. Rad1 {[%emt
00:01:40]} Be5 {[%clk 00:35:47]} {[%emt 00:03:37]} 23. Qe3 {[%clk 00:55:57]}
{[%emt 00:01:27]} Qxe4 {[%clk 00:34:40]} {[%emt 00:01:37]} 24. Qxe4 {[%clk
00:56:03]} {[%emt 00:00:16]} Bxe4 {[%clk 00:35:02]} {[%emt 00:00:16]} 25. Rxe4
{[%clk 00:56:30]} {[%emt 00:00:03]} Bf6 {[%clk 00:35:10]} {[%emt 00:00:22]} 26.
d5 {[%clk 00:54:42]} {[%emt 00:02:19]} Rd6 {[%clk 00:34:56]} {[%emt 00:00:45]}
27. Re2 {[%clk 00:53:32]} {[%emt 00:01:39]} Rc8 {[%clk 00:31:12]} {[%emt
00:04:14]} 28. Rc2 {[%clk 00:51:14]} {[%emt 00:02:48]} exd5 {[%clk 00:31:06]}
{[%emt 00:00:36]} 29. Rdd2 {[%clk 00:49:44]} {[%emt 00:01:59]} d4 {[%clk
00:31:02]} {[%emt 00:00:35]} 30. Rd1 {[%clk 00:48:16]} {[%emt 00:01:58]} Rdc6
{[%clk 00:30:36]} {[%emt 00:00:56]} 31. f4 {[%clk 00:46:57]} {[%emt 00:01:49]}
Rxc4 {[%clk 00:30:44]} {[%emt 00:00:22]} 32. Rxc4 {[%clk 00:45:51]} {[%emt
00:01:36]} Rxc4 {[%clk 00:30:55]} {[%emt 00:00:20]} 33. Rd2 {[%clk 00:46:11]}
{[%emt 00:00:09]} Kf8 {[%clk 00:30:33]} {[%emt 00:00:51]} 34. Kf2 {[%clk
00:46:15]} {[%emt 00:00:26]} Ke7 {[%clk 00:30:38]} {[%emt 00:00:26]} 35. Kf3
{[%clk 00:46:33]} {[%emt 00:00:11]} Kd6 {[%clk 00:29:50]} {[%emt 00:01:19]} 36.
Ke4 {[%clk 00:45:50]} {[%emt 00:01:13]} g6 {[%clk 00:29:12]} {[%emt 00:01:08]}
37. f5 {[%clk 00:45:05]} {[%emt 00:01:15]} g5 {[%clk 00:29:17]} {[%emt
00:00:24]} 38. Kf3 {[%clk 00:44:59]} {[%emt 00:00:35]} Rc3+ {[%clk 00:28:04]}
{[%emt 00:01:44]} 39. Kg4 {[%clk 00:45:16]} {[%emt 00:00:12]} Ke5 {[%clk
00:27:56]} {[%emt 00:00:38]} 40. Re2+ {[%clk 00:44:26]} {[%emt 00:01:20]} Re3
{[%clk 00:28:11]} {[%emt 00:00:15]} 41. Rd2 {[%clk 00:44:33]} {[%emt 00:00:22]}
Re4+ {[%clk 00:28:24]} {[%emt 00:00:17]} 42. Kf3 {[%clk 00:44:51]} {[%emt
00:00:11]} Kxf5 {[%clk 00:28:32]} {[%emt 00:00:23]} 43. g4+ {[%clk 00:44:42]}
{[%emt 00:00:39]} Ke5 {[%clk 00:28:56]} {[%emt 00:00:07]} 44. Kg3 {[%clk
00:44:31]} {[%emt 00:00:40]} Re3+ {[%clk 00:29:20]} {[%emt 00:00:06]} 45. Kf2
{[%clk 00:44:44]} {[%emt 00:00:17]} Rxh3 {[%clk 00:29:29]} {[%emt 00:00:22]} 46.
Kg2 {[%clk 00:45:02]} {[%emt 00:00:13]} Re3 {[%clk 00:29:42]} {[%emt 00:00:15]}
47. Kf1 {[%clk 00:45:05]} {[%emt 00:00:25]} Ke4 {[%clk 00:30:07]} {[%emt
00:00:08]} 48. Kf2 {[%clk 00:45:04]} {[%emt 00:00:29]} d3 {[%clk 00:30:04]}
{[%emt 00:00:35]} 49. Kf1 {[%clk 00:45:22]} {[%emt 00:00:12]} Bc3 {[%clk
00:30:13]} {[%emt 00:00:21]} 50. Rd1 {[%clk 00:45:29]} {[%emt 00:00:23]} d2
{[%clk 00:30:19]} {[%emt 00:00:24]} 51. Rxd2 {[%clk 00:45:36]} {[%emt
00:00:23]} Bxd2 {[%clk 00:30:42]} {[%emt 00:00:07]} 52. Kf2 {[%clk 00:46:03]}
{[%emt 00:00:03]} Be1+ {[%clk 00:30:47]} {[%emt 00:00:24]} 53. Kf1 {[%clk
00:46:21]} {[%emt 00:00:13]} Kf3 {[%clk 00:31:11]} {[%emt 00:00:05]} 54. Kg1
{[%clk 00:46:45]} {[%emt 00:00:07]} Bg3 {[%clk 00:31:31]} {[%emt 00:00:10]} 55.
Kh1 {[%clk 00:47:03]} {[%emt 00:00:12]} Re1# {[%clk 00:31:54]} {[%emt
00:00:07]} 0-1

[Event "NJSK 2023 Meisjes C"]
[Site "Almelo, Netherlands"]
[Date "2023.05.03"]
[Round "4.4"]
[White "Van Apeldoorn, Vera"]
[Black "Liu, Chia-Yun"]
[Result "1-0"]
[TimeControl "90min/40moves + 30min + 30sec/move"]
[WhiteElo "1153"]
[BlackElo "1470"]

1. d4 {[%clk 01:30:58]} {[%emt 00:00:02]} d5 {[%clk 01:30:54]} {[%emt
00:00:07]} 2. c4 {[%clk 01:31:24]} {[%emt 00:00:03]} e6 {[%clk 01:31:16]}
{[%emt 00:00:08]} 3. Nc3 {[%clk 01:31:40]} {[%emt 00:00:14]} Nf6 {[%clk
01:31:36]} {[%emt 00:00:10]} 4. cxd5 {[%clk 01:31:43]} {[%emt 00:00:27]} exd5
{[%clk 01:31:54]} {[%emt 00:00:12]} 5. Bg5 {[%clk 01:31:56]} {[%emt 00:00:17]}
Be7 {[%clk 01:32:04]} {[%emt 00:00:20]} 6. e3 {[%clk 01:31:53]} {[%emt
00:00:33]} c6 {[%clk 01:31:37]} {[%emt 00:00:57]} 7. Bd3 {[%clk 01:31:31]}
{[%emt 00:00:52]} O-O {[%clk 01:31:35]} {[%emt 00:00:32]} 8. Nge2 {[%clk
01:31:01]} {[%emt 00:01:01]} Re8 {[%clk 01:30:56]} {[%emt 00:01:09]} 9. O-O
{[%clk 01:30:14]} {[%emt 00:01:17]} Nbd7 {[%clk 01:23:09]} {[%emt 00:08:17]} 10.
Qc2 {[%clk 01:26:45]} {[%emt 00:03:59]} h6 {[%clk 01:19:24]} {[%emt 00:04:15]}
11. Bf4 {[%clk 01:25:13]} {[%emt 00:02:03]} Nf8 {[%clk 01:12:20]} {[%emt
00:07:34]} 12. f3 {[%clk 01:19:59]} {[%emt 00:05:44]} Nh5 {[%clk 01:05:53]}
{[%emt 00:06:56]} 13. Qd2 {[%clk 01:10:33]} {[%emt 00:09:56]} Nxf4 {[%clk
01:02:32]} {[%emt 00:03:52]} 14. Nxf4 {[%clk 01:09:39]} {[%emt 00:01:23]} Bg5
{[%clk 00:59:00]} {[%emt 00:04:01]} 15. Nce2 {[%clk 01:03:54]} {[%emt
00:06:16]} b5 {[%clk 00:50:56]} {[%emt 00:08:34]} 16. Rac1 {[%clk 00:58:16]}
{[%emt 00:06:08]} Qd6 {[%clk 00:48:42]} {[%emt 00:02:44]} 17. Rfe1 {[%clk
00:51:35]} {[%emt 00:07:11]} a5 {[%clk 00:46:44]} {[%emt 00:02:28]} 18. a3
{[%clk 00:46:03]} {[%emt 00:06:03]} Bd7 {[%clk 00:43:59]} {[%emt 00:03:15]} 19.
Bb1 {[%clk 00:41:40]} {[%emt 00:04:53]} Ne6 {[%clk 00:29:55]} {[%emt 00:14:34]}
20. Nxe6 {[%clk 00:31:50]} {[%emt 00:10:20]} Qxe6 {[%clk 00:27:36]} {[%emt
00:02:50]} 21. Nf4 {[%clk 00:27:19]} {[%emt 00:05:00]} Qf6 {[%clk 00:21:55]}
{[%emt 00:06:11]} 22. Rcd1 {[%clk 00:21:08]} {[%emt 00:06:41]} a4 {[%clk
00:21:14]} {[%emt 00:01:11]} 23. Qd3 {[%clk 00:19:19]} {[%emt 00:02:19]} Bf5
{[%clk 00:20:26]} {[%emt 00:01:18]} 24. Qxf5 {[%clk 00:15:49]} {[%emt
00:04:00]} Qxf5 {[%clk 00:18:03]} {[%emt 00:02:54]} 25. Bxf5 {[%clk 00:15:48]}
{[%emt 00:00:31]} Bxf4 {[%clk 00:17:40]} {[%emt 00:00:53]} 26. exf4 {[%clk
00:15:54]} {[%emt 00:00:23]} Rxe1+ {[%clk 00:17:47]} {[%emt 00:00:24]} 27. Rxe1
{[%clk 00:16:13]} {[%emt 00:00:11]} Rd8 {[%clk 00:17:58]} {[%emt 00:00:19]} 28.
Re7 {[%clk 00:15:53]} {[%emt 00:00:51]} Kf8 {[%clk 00:18:02]} {[%emt 00:00:25]}
29. Rc7 {[%clk 00:16:02]} {[%emt 00:00:21]} Rd6 {[%clk 00:17:53]} {[%emt
00:00:40]} 30. Kf2 {[%clk 00:15:00]} {[%emt 00:01:32]} Ke8 {[%clk 00:16:22]}
{[%emt 00:02:02]} 31. g4 {[%clk 00:13:33]} {[%emt 00:01:57]} g6 {[%clk
00:16:06]} {[%emt 00:00:46]} 32. Bd3 {[%clk 00:12:59]} {[%emt 00:01:03]} Rf6
{[%clk 00:16:04]} {[%emt 00:00:31]} 33. f5 {[%clk 00:12:03]} {[%emt 00:01:26]}
g5 {[%clk 00:16:00]} {[%emt 00:00:34]} 34. Kg3 {[%clk 00:11:52]} {[%emt
00:00:41]} Kd8 {[%clk 00:15:52]} {[%emt 00:00:38]} 35. Ra7 {[%clk 00:11:51]}
{[%emt 00:00:31]} Ke8 {[%clk 00:16:02]} {[%emt 00:00:20]} 36. f4 {[%clk
00:11:25]} {[%emt 00:00:56]} Kd8 {[%clk 00:15:21]} {[%emt 00:01:11]} 37. h4
{[%clk 00:10:33]} {[%emt 00:01:21]} gxh4+ {[%clk 00:14:21]} {[%emt 00:01:30]}
38. Kxh4 {[%clk 00:10:49]} {[%emt 00:00:14]} Ke8 {[%clk 00:13:59]} {[%emt
00:00:51]} 39. g5 {[%clk 00:10:36]} {[%emt 00:00:43]} hxg5+ {[%clk 00:13:50]}
{[%emt 00:00:39]} 40. fxg5 {[%clk 00:10:53]} {[%emt 00:00:13]} Rd6 {[%clk
00:14:05]} {[%emt 00:00:16]} 41. Rc7 {[%clk 00:09:12]} {[%emt 00:02:10]} Kf8
{[%clk 00:14:00]} {[%emt 00:00:35]} 42. g6 {[%clk 00:09:11]} {[%emt 00:00:31]}
fxg6 {[%clk 00:14:07]} {[%emt 00:00:22]} 43. fxg6 {[%clk 00:09:29]} {[%emt
00:00:12]} Kg8 {[%clk 00:14:28]} {[%emt 00:00:10]} 44. Bf5 {[%clk 00:08:46]}
{[%emt 00:01:13]} Rf6 {[%clk 00:14:02]} {[%emt 00:00:55]} 45. Kg5 {[%clk
00:08:56]} {[%emt 00:00:20]} Rf8 {[%clk 00:13:35]} {[%emt 00:00:57]} 46. Rc8
{[%clk 00:09:15]} {[%emt 00:00:11]} Rxc8 {[%clk 00:13:38]} {[%emt 00:00:27]} 47.
Bxc8 {[%clk 00:09:41]} {[%emt 00:00:04]} c5 {[%clk 00:12:01]} {[%emt 00:02:07]}
48. dxc5 {[%clk 00:09:50]} {[%emt 00:00:20]} d4 {[%clk 00:12:20]} {[%emt
00:00:12]} 49. Bf5 {[%clk 00:10:09]} {[%emt 00:00:11]} b4 {[%clk 00:11:37]}
{[%emt 00:01:13]} 50. c6 {[%clk 00:09:47]} {[%emt 00:00:52]} bxa3 {[%clk
00:11:42]} {[%emt 00:00:25]} 51. bxa3 {[%clk 00:10:06]} {[%emt 00:00:10]} d3
{[%clk 00:12:04]} {[%emt 00:00:08]} 52. Bxd3 {[%clk 00:10:30]} {[%emt
00:00:06]} Kf8 {[%clk 00:12:22]} {[%emt 00:00:12]} 53. c7 {[%clk 00:10:19]}
{[%emt 00:00:40]} Kg7 {[%clk 00:12:43]} {[%emt 00:00:08]} 54. Kf4 {[%clk
00:10:41]} {[%emt 00:00:08]} Kf6 {[%clk 00:12:52]} {[%emt 00:00:21]} 55. c8=Q
{[%clk 00:10:56]} {[%emt 00:00:15]} Kg7 {[%clk 00:13:12]} {[%emt 00:00:11]} 56.
Qd7+ {[%clk 00:11:04]} {[%emt 00:00:22]} Kf6 {[%clk 00:13:30]} {[%emt
00:00:13]} 57. Qf5+ {[%clk 00:10:43]} {[%emt 00:00:51]} Kg7 {[%clk 00:13:53]}
{[%emt 00:00:07]} 58. Qf7+ {[%clk 00:11:06]} {[%emt 00:00:08]} Kh8 {[%clk
00:14:11]} {[%emt 00:00:11]} 59. Qh7# {[%clk 00:10:57]} {[%emt 00:00:07]} 1-0

[Event "NJSK 2023 Meisjes C"]
[Site "Almelo, Netherlands"]
[Date "2023.05.03"]
[Round "4.5"]
[White "Luong, Thao"]
[Black "Koorevaar, Sarah-Joy"]
[Result "0-1"]
[TimeControl "90min/40moves + 30min + 30sec/move"]
[WhiteElo "804"]
[BlackElo "1067"]

1. e4 {[%clk 01:30:59]} {[%emt 00:00:01]} c5 {[%clk 01:30:56]} {[%emt
00:00:04]} 2. Nf3 {[%clk 01:31:25]} {[%emt 00:00:04]} Nc6 {[%clk 01:31:18]}
{[%emt 00:00:09]} 3. d4 {[%clk 01:31:20]} {[%emt 00:00:34]} cxd4 {[%clk
01:31:43]} {[%emt 00:00:04]} 4. Nxd4 {[%clk 01:31:46]} {[%emt 00:00:04]} e6
{[%clk 01:32:10]} {[%emt 00:00:04]} 5. f3 {[%clk 01:30:51]} {[%emt 00:01:24]}
Qc7 {[%clk 01:32:26]} {[%emt 00:00:14]} 6. Nc3 {[%clk 01:30:28]} {[%emt
00:00:53]} a6 {[%clk 01:32:50]} {[%emt 00:00:07]} 7. Be3 {[%clk 01:30:28]}
{[%emt 00:00:30]} b5 {[%clk 01:32:58]} {[%emt 00:00:21]} 8. a3 {[%clk
01:29:45]} {[%emt 00:01:13]} Bb7 {[%clk 01:32:56]} {[%emt 00:00:33]} 9. a4
{[%clk 01:28:42]} {[%emt 00:01:33]} b4 {[%clk 01:30:35]} {[%emt 00:02:51]} 10.
Nce2 {[%clk 01:27:10]} {[%emt 00:02:01]} Nf6 {[%clk 01:29:21]} {[%emt
00:01:44]} 11. g4 {[%clk 01:22:04]} {[%emt 00:05:36]} Bc5 {[%clk 01:24:10]}
{[%emt 00:05:42]} 12. Nxe6 {[%clk 01:17:20]} {[%emt 00:05:13]} dxe6 {[%clk
01:20:51]} {[%emt 00:03:49]} 13. Bxc5 {[%clk 01:17:30]} {[%emt 00:00:20]} Rd8
{[%clk 01:20:44]} {[%emt 00:00:38]} 14. Qc1 {[%clk 01:14:45]} {[%emt 00:03:13]}
Ne5 {[%clk 01:19:45]} {[%emt 00:01:31]} 15. Qe3 {[%clk 01:07:15]} {[%emt
00:07:59]} Nc4 {[%clk 01:14:43]} {[%emt 00:05:33]} 16. Qf2 {[%clk 01:05:52]}
{[%emt 00:01:51]} Nxb2 {[%clk 01:05:30]} {[%emt 00:09:44]} 17. Ra2 {[%clk
01:01:31]} {[%emt 00:04:50]} Rd1# {[%clk 01:05:47]} {[%emt 00:00:14]} 0-1